Cogmind - Beta 13 @@@ ROGUE MODE // 2024.04.14 @ 00:55:53 Player: Pfil Result: Destroyed by G-47 Trooper with Particle Gun Performance ------------- Evolutions (2) 1000 Regions Visited (4) 800 Robots Destroyed (69) 345 Value Destroyed (1904) 1904 Prototype IDs (7) 140 Alien Tech Used (0) 0 Bonus (96) 96 TOTAL SCORE: 4285 Bonus ------- High Alert Combat Kills 53 Follower Combat Kills 75 Friendly Fire -32 Cogmind --------- Core Integrity 0/550 Matter 287/300 Energy 60/100 System Corruption 0% Temperature Cool (9) Movement Core (50) Location -8/Materials Parts ------- > --- POWER (3) -------- (None) > --- PROPULSION (3) --- (None) > --- UTILITY (3) ------ Advanced Targeting Computer System Shield > --- WEAPON (2) ------- (None) > --- INVENTORY (5) ---- Weight Redist. System Weight Redist. System Peak State ------------ > --- POWER ------------ Heavy Ion Engine > --- PROPULSION ------- Improved Flight Unit Improved Flight Unit > --- UTILITY ---------- Weight Redist. System Advanced Targeting Computer System Shield > --- WEAPON ----------- Heavy EM Pulse Gun Beam Rifle > --- INVENTORY -------- Weight Redist. System Weight Redist. System System Shield Beam Rifle Rocket Launcher [Rating: 22] Favorites ----------- Power Ion Engine Engine Ion Engine Power Core Light Nuclear Core Propulsion Aluminum Leg Leg Aluminum Leg Wheel Wheel Hover Unit Improved Hover Unit Flight Unit Improved Flight Unit Utility Core Shielding Device Weight Redist. System Storage Small Battery Processor Advanced Targeting Computer Hackware System Shield Protection Core Shielding Weapon Assault Rifle Energy Gun Improved Medium Laser Energy Cannon Advanced Beam Cannon Ballistic Gun Assault Rifle Ballistic Cannon Light Cannon Launcher Rocket Launcher Special Melee Weapon Improved Datajack Build | -11 -10 -10 -9 -8 ------- Run | Yrd Mat Min Mat Mat Slots Evolved 4 | . . . 2 2 Power 2 | . . . 2 . Propulsion 1 | . . . . 1 Utility 1 | . . . . 1 Weapon . | . . . . . Parts Attached 79 | 7 17 9 41 5 Power 17 | 2 2 1 12 . Engine 16 | 2 2 1 11 . Core 1 | . . . 1 . Reactor . | . . . . . Propulsion 22 | 3 4 6 9 . Treads . | . . . . . Leg 7 | 2 2 3 . . Wheel 1 | 1 . . . . Hover 3 | . 2 1 . . Flight 11 | . . 2 9 . Utility 13 | . 5 1 5 2 Device 3 | . 1 . 2 . Storage 3 | . 2 1 . . Processor 1 | . . . 1 . Hackware 2 | . . . . 2 Protection 4 | . 2 . 2 . Artifact . | . . . . . Weapon 27 | 2 6 1 15 3 Energy Gun 13 | 2 2 . 7 2 Energy Cannon 1 | . . . 1 . Ballistic Gun 6 | . 2 . 4 . Ballistic Cannon 2 | . 1 . 1 . Launcher 4 | . 1 1 1 1 Special Weapon . | . . . . . Impact Weapon . | . . . . . Slashing Weapon . | . . . . . Piercing Weapon . | . . . . . Special Melee Weapon 1 | . . . 1 . Unidentified Prototypes 3 | . . . 3 . Parts Lost 19 | . 4 . 5 10 Power 3 | . 1 . 1 1 Propulsion 7 | . 2 . 3 2 Utility 3 | . . . 1 2 Weapon 6 | . 1 . . 5 Highest Loss Streak 9 | . 4 . 1 9 To Critical Strikes . | . . . . . Average Slot Usage (%) 75 | . 91 77 62 56 Engine 13 | . 12 14 13 6 Leg 14 | . 22 25 3 . Hover 1 | . 3 . . . Flight 8 | . . 2 17 10 Device 3 | . 1 . 6 7 Storage 4 | . 12 . . . Protection 7 | . 10 7 5 . Energy Gun 5 | . 6 . 7 13 Ballistic Gun 7 | . 5 17 3 . Ballistic Cannon 2 | . 8 . . . Launcher 5 | . 7 8 1 . Naked Turns . | . . . . . Heaviest Build 21 | 8 15 11 21 14 Greatest Support 20 | 20 20 20 20 16 Greatest Overweight (x) 6 | . 1 . 6 1 Average Overweight (x) . | . . . . . Largest Inventory Capacity 25 | 5 8 25 5 5 Average Capacity 5 | 5 5 5 5 5 Most Carried 5 | 4 5 5 5 5 Average Carried 3 | . 2 4 3 4 Final Capacity 8 | 5 8 5 5 5 Final Carried 5 | . 4 5 5 2 Class Distribution -------------------- 100% | Mutant Dominant Class ---------------- Mutant | -10/Materials Mutant | -10/Mines Mutant | -9/Materials Mutant | -8/Materials Resources | -11 -10 -10 -9 -8 ----------- Run | Yrd Mat Min Mat Mat Matter Collected 1578 | 270 397 212 668 31 Remotely . | . . . . . Salvage Created 2228 | 35 566 279 1229 119 Parts 148 | 2 29 24 84 9 Haulers Intercepted 7 | . 2 . 5 . Recyclers Shooed . | . . . . . Parts Field Recycled . | . . . . . Retrieved Matter . | . . . . . Parts Self-Destructed . | . . . . . Prevented . | . . . . . Kills | -11 -10 -10 -9 -8 ------- Run | Yrd Mat Min Mat Mat Combat Hostiles Destroyed 54 | 1 13 11 27 2 Guns 25 | 1 2 5 15 2 Cannons 12 | . 7 . 5 . AOE 17 | . 4 6 7 . Classes Destroyed 9 | 1 2 2 4 . Builder 1 | . . . 1 . Hauler 7 | . 2 . 5 . Recycler 1 | . . . 1 . Mechanic 1 | . . 1 . . Watcher 5 | . 3 . 2 . Swarmer 14 | . . 5 9 . Grunt 27 | 1 13 6 7 . Duelist 1 | . . . 1 . Sentry 12 | . . . 10 2 Best Kill Streak 5 | 1 3 5 4 1 Combat Bots Only 4 | 1 2 4 4 1 Max Kills in Single Turn 3 | 1 1 3 3 1 Gunslinging . | . . . . . Exploded 3 | . 1 2 3 . Melee . | . . . . . Uniques/NPCs Destroyed . | . . . . . Combat | -11 -10 -10 -9 -8 -------- Run | Yrd Mat Min Mat Mat Hostile Shots Fired 339 | 6 57 35 173 68 Missed 124 | 3 17 7 74 23 Damage Taken 3219 | 35 553 320 1269 1042 Core 1168 | . 110 112 390 556 Absorbed by Shields . | . . . . . Redirected to Shielding 74 | . 16 2 56 . Regen/Repaired (Parts) 79 | . . . 79 . Core Remaining (%) 37 | 100 . 11 2 . Volleys Fired 309 | 5 72 30 182 20 Largest 2 | 2 2 2 2 2 Hottest 112 | 90 90 40 112 101 Shots Fired 371 | 10 93 36 199 33 Gun 275 | 10 42 31 160 32 Cannon 79 | . 43 . 36 . Launcher 17 | . 8 5 3 1 Special . | . . . . . Kinetic 144 | . 43 31 70 . Thermal 187 | 10 42 . 119 16 Explosive 17 | . 8 5 3 1 Electromagnetic 23 | . . . 7 16 Robot Hit Streak 8 | 2 8 5 8 7 Robot Miss Streak 11 | 4 5 3 11 2 Penetration Max . | . . . . . Secondary Targets 1 | . 1 . . . Max Gunslinging Chain 1 | . 1 . . . Shots Hit Robots 230 | 4 64 19 120 23 Core Hits 100 | 2 26 15 50 7 Critical Kills . | . . . . . Critical Parts Destroyed . | . . . . . Critical Strikes 8 | . . . 7 1 Burn 7 | . . . 6 1 Destroy 1 | . . . 1 . Melee Attacks 2 | . . . 2 . Impact . | . . . . . Slashing . | . . . . . Piercing . | . . . . . Sneak Attacks . | . . . . . Combat Hostiles . | . . . . . Follow-up Attacks . | . . . . . Damage Inflicted 4675 | 60 1166 655 2427 367 Guns 2522 | 60 397 226 1528 311 Cannons 921 | . 454 . 467 . Explosions 1229 | . 315 429 432 53 Melee . | . . . . . Ramming 3 | . . . . 3 Kinetic 1325 | . 454 226 645 . Thermal 1941 | 60 397 . 1325 159 Explosive 1187 | . 315 429 390 53 Electromagnetic 219 | . . . 67 152 Impact . | . . . . . Slashing . | . . . . . Piercing . | . . . . . Highest Corruption . | . . . . . Average Corruption . | . . . . . Corruption Purged . | . . . . . Corruption Blocked . | . . . . . Overload Shots . | . . . . . Overflow Damage 49 | . 12 14 15 8 Projectiles 23 | . 12 . 11 . Explosions 26 | . . 14 4 8 Melee . | . . . . . Knockbacks 5 | . 5 . . . Impact . | . . . . . Kinetic 5 | . 5 . . . Secondary . | . . . . . Self-Inflicted Damage 94 | . 62 . 31 1 Shots 3 | . 2 . 1 . Rammed 1 | . . . . 1 Targets Rammed 2 | . 1 . . 1 Kicked 1 | . 1 . . . Crushed . | . . . . . Highest Temperature 395 | 168 300 7 395 168 Average Temperature 106 | 83 82 2 123 57 Received Heat Transfer 1200 | 18 288 129 441 324 Effects 6 | . . . 6 . Shutdowns 3 | . . . 3 . Energy Bleed 1 | . . . 1 . Interference 1 | . . . 1 . Damage (minor) 1 | . . . 1 . Siege Activations . | . . . . . Robots Corrupted . | . . . . . Combat Hostiles . | . . . . . Parts Fried . | . . . . . Impact Corruptions . | . . . . . Robots Melted 1 | . 1 . . . Combat Hostiles . | . . . . . Parts Melted 9 | . 3 . 6 . Heat Transferred 4928 | 161 1054 . 3232 481 Parts Sabotaged . | . . . . . Parts Stolen . | . . . . . Parts Stripped . | . . . . . Power Chain Reactions 1 | . . . 1 . Alert | -11 -10 -10 -9 -8 ------- Run | Yrd Mat Min Mat Mat Peak Influence 564 | 20 259 214 564 347 Initial 237 | . 13 . 24 237 Average 161 | 5 106 80 254 293 Maximum Alert Level 2 | . 1 1 2 1 Low Security (%) 66 | 100 97 80 35 . Level 1 28 | . 2 19 51 100 Level 2 5 | . . . 13 . Level 3 . | . . . . . Level 4 . | . . . . . Level 5 . | . . . . . High Security . | . . . . . Max Security . | . . . . . Squads Dispatched 10 | . 4 1 2 3 Investigation 3 | . 3 . . . Extermination . | . . . . . Reinforcement 5 | . 1 . 2 2 Assault 1 | . . 1 . . Garrison 1 | . . . . 1 Intercept . | . . . . . Searches Triggered . | . . . . . Construction Impeded 1 | . . . . 1 Haulers Reinforced . | . . . . . Active Scanning Responses . | . . . . . Cargo Convoy Interrupts . | . . . . . Stealth | -11 -10 -10 -9 -8 --------- Run | Yrd Mat Min Mat Mat Distress Signals 5 | . 1 . 2 2 Communications Jammed . | . . . . . Distress Signals . | . . . . . Times Spotted 96 | 1 21 14 48 12 Peak Tracking Total 10 | 1 3 4 6 10 Tactical Retreats 5 | . . 1 2 2 Traps | -11 -10 -10 -9 -8 ------- Run | Yrd Mat Min Mat Mat Traps Triggered 3 | . 2 . 1 . Indirectly . | . . . . . Trap Hack Attempts . | . . . . . Triggered . | . . . . . Disarmed 5 | . . . 5 . Reprogrammed . | . . . . . Reused . | . . . . . Traps Extracted . | . . . . . Installed . | . . . . . Triggered . | . . . . . Machines | -11 -10 -10 -9 -8 ---------- Run | Yrd Mat Min Mat Mat Machines Disabled 6 | . 3 . 3 . Max in Single Turn 1 | . 1 . 1 . Machines Repaired . | . . . . . Machines Dismantled . | . . . . . Machines Sabotaged . | . . . . . Overloaded Fab Kills . | . . . . . Hacking | -11 -10 -10 -9 -8 --------- Run | Yrd Mat Min Mat Mat Machines Accessed 23 | . 8 . 14 1 Terminals 15 | . 6 . 9 . Fabricators . | . . . . . Repair Stations 3 | . 1 . 2 . Recycling Units 2 | . 1 . 1 . Scanalyzers 2 | . . . 2 . Garrison Access 1 | . . . . 1 Total Hacks 79 | . 28 . 50 1 Successful 53 | . 16 . 36 1 Failed 26 | . 12 . 14 . Catastrophic . | . . . . . Database Lockouts . | . . . . . Manual 2 | . 2 . . . Terminals 52 | . 21 . 31 . Fabricators . | . . . . . Repair Stations 12 | . 2 . 10 . Recycling Units 6 | . 5 . 1 . Scanalyzers 8 | . . . 8 . Garrison Access 1 | . . . . 1 Terminal Hacks 32 | . 12 . 20 . Record 2 | . 1 . 1 . Prototype ID Bank 3 | . 2 . 1 . Emergency Access Points 2 | . . . 2 . Terminal Index 1 | . . . 1 . Alert Level 2 | . 2 . . . Unreport Threat 3 | . 2 . 1 . Locate Traps 1 | . . . 1 . Disarm Traps 1 | . . . 1 . Dispatch Records 1 | . . . 1 . Maintenance Status 3 | . 1 . 2 . Surveillance Status 1 | . . . 1 . Transport Status 1 | . . . 1 . Reinforcement Status 1 | . . . 1 . Recall Investigation 1 | . . . 1 . Hauler Manifests 4 | . 2 . 2 . Registered Components 2 | . 1 . 1 . Registered Prototypes 1 | . . . 1 . Zone Layout 2 | . 1 . 1 . Fabricator Hacks . | . . . . . Repair Station Hacks 8 | . 1 . 7 . Scan Component 5 | . 1 . 4 . Repair 3 | . . . 3 . Recycling Unit Hacks 4 | . 3 . 1 . Recycle Component 1 | . 1 . . . Process 1 | . 1 . . . Report Inventory 1 | . . . 1 . Retrieve Components 1 | . 1 . . . Scanalyzer 8 | . . . 8 . Insert Component 3 | . . . 3 . Analyze 5 | . . . 5 . Garrison Access Hacks 1 | . . . . 1 Unlock Access 1 | . . . . 1 Unauthorized Hacks . | . . . . . Terminals . | . . . . . Fabricators . | . . . . . Repair Stations . | . . . . . Recycling Units . | . . . . . Scanalyzers . | . . . . . Garrison Access . | . . . . . Data Cores Recovered . | . . . . . Used . | . . . . . Hacking Detections 19 | . 8 . 10 1 Full Trace Events 2 | . 2 . . . Feedback Events . | . . . . . Feedback Blocked . | . . . . . Robot Schematics Acquired . | . . . . . Robots Built . | . . . . . Authchips . | . . . . . Time . | . . . . . Total Robot Build Rating . | . . . . . Part Schematics Acquired 3 | . . . 3 . Parts Built . | . . . . . Authchips . | . . . . . Time . | . . . . . Total Part Build Rating . | . . . . . Parts Repaired 3 | . . . 3 . Time 109 | . . . 109 . Parts Recycled 1 | . 1 . . . Recycled Matter 10 | . 10 . . . Retrieved Matter . | . . . . . Retrieved Components 9 | . 9 . . . Parts Scanalyzed 3 | . . . 3 . Part Schematics Acquired 3 | . . . 3 . Parts Damaged . | . . . . . Bothacking | -11 -10 -10 -9 -8 ------------ Run | Yrd Mat Min Mat Mat Used RIF Installer . | . . . . . Robots Hacked 1 | . . . 1 . Non-combat . | . . . . . Combat 1 | . . . 1 . Robot Hacks Applied 1 | . . . 1 . parse_system 1 | . . . 1 . Relay Couplers Released . | . . . . . Fabnet Peak Effective % . | . . . . . Robots Rewired . | . . . . . Allies Hacked . | . . . . . Hacks Repelled . | . . . . . Allies | -11 -10 -10 -9 -8 -------- Run | Yrd Mat Min Mat Mat Total Allies 1 | . . 1 . . Largest Group 1 | . . 1 1 . Highest-Rated Group 31 | . . 31 31 . Highest-Rated Ally 31 | . . 31 31 . Total Orders . | . . . . . Ally Attacks 25 | . . 9 16 . Total Damage 357 | . . 84 273 . Kills 4 | . . . 4 . Allies Corrupted . | . . . . . Allies Melted . | . . . . . Intel | -11 -10 -10 -9 -8 ------- Run | Yrd Mat Min Mat Mat Robot Analysis Total . | . . . . . Derelict Logs Recovered . | . . . . . Drone Launches . | . . . . . Drone Recoveries . | . . . . . Exploration | -11 -10 -10 -9 -8 ------------- Run | Yrd Mat Min Mat Mat Turns Passed 3843 | 139 1285 802 1483 134 Spaces Moved 3768 | 95 951 669 1920 133 Core 66 | 21 11 . 1 33 Treads . | . . . . . Legs 1432 | 74 735 530 93 . Wheels . | . . . . . Hover 205 | . 205 . . . Flight 2065 | . . 139 1826 100 Fastest Speed 37 | 50 56 37 37 37 Average Speed 71 | 104 106 102 44 50 Slowest Speed 350 | 120 120 120 350 110 Overloaded Moves . | . . . . . Propulsion Burnouts . | . . . . . Robots Hopped 17 | . . . 17 . Cave-ins Triggered . | . . . . . Exploration Rate (%) 59 | 9 90 92 97 10 Regions Visited 4 Branch Regions 1 Pre-discovered Areas . | . . . . . Known Exits Taken . | . . . . . Unknown Exits Taken 4 | 1 1 1 1 . Scrap Searched 2 | . . 2 . . Spaces Dug . | . . . . . Terrain Destroyed 131 | . 39 64 22 6 Melee . | . . . . . Projectile . | . . . . . AOE 131 | . 39 64 22 6 Terrain Rammed . | . . . . . Walls Destroyed . | . . . . . Machines Disabled . | . . . . . Actions | -11 -10 -10 -9 -8 --------- Run | Yrd Mat Min Mat Mat Total 4528 | 126 1141 750 2345 166 Wait 228 | 3 48 26 145 6 Move 3730 | 94 950 668 1885 133 Hop 17 | . . . 17 . Pick Up 79 | 11 31 5 31 1 Fast Attach 16 | . . 3 12 1 Attach 35 | 5 8 2 16 4 Detach 16 | . 2 3 11 . Swap 28 | 2 9 4 13 . Drop 66 | 6 20 9 31 . Fire 309 | 5 72 30 182 20 Melee 2 | . . . 2 . Ram 1 | . . . . 1 Kick 1 | . 1 . . . Crush . | . . . . . Escape Stasis . | . . . . . Rewire . | . . . . . Trap . | . . . . . Miscellaneous . | . . . . . Route ------- -11/Scrapyard -10/Materials (discovered 4 exits: *Mat x3 / [*Min]) -10/Mines (discovered 2 exits: *Mat x2) -9/Materials (discovered 5 exits: *Mat x3 / [*Min x2]) -8/Materials (discovered 1 exit: Gar) History --------- Turn | Location | Event 2 | -11/Scrapyard | Met Revision 17 81 | -11/Scrapyard | Discovered new exit (range 8) 140 | -11/Scrapyard | Entered Materials 317 | -10/Materials | Build established: Mutant 491 | -10/Materials | Discovered new exit (range 16) 744 | -10/Materials | Discovered new exit (range 16) 862 | -10/Materials | Lost 4 parts (1p2n1w) 977 | -10/Materials | Discovered new exit (range 16) 1153 | -10/Materials | Discovered new exit (range 16) 1425 | -10/Materials | Entered Mines 1443 | -10/Mines | Discovered new exit (range 5) 1668 | -10/Mines | Discovered new exit (range 9) 1676 | -10/Mines | Received a Rocket Launcher from a helpful Derelict 1702 | -10/Mines | Core integrity fell below 50% 1814 | -10/Mines | Found a hidden stash of uninstalled traps 1926 | -10/Mines | Met a Derelict testing a Signal Generator 1987 | -10/Mines | Core integrity fell below 20% 2227 | -10/Mines | Entered Materials 2227 | -9/Materials | Accompanied by 1 ally 2227 | -9/Materials | Evolved 2 slots: Power x2 2599 | -9/Materials | Discovered new exit (range 8) 2676 | -9/Materials | Discovered new exit (range 7) 2828 | -9/Materials | Discovered new exit (range 16) 3073 | -9/Materials | Discovered new exit (range 15) 3233 | -9/Materials | Repaired Rocket Launcher 3285 | -9/Materials | Repaired Imp. Medium Laser 3313 | -9/Materials | Repaired Core Shielding 3325 | -9/Materials | Core integrity fell below 50% 3388 | -9/Materials | Core integrity fell below 20% 3514 | -9/Materials | Discovered new exit (range 8) 3710 | -9/Materials | Entered another Materials area 3710 | -8/Materials | Evolved 2 slots: Propulsion x1, Utility x1 3749 | -8/Materials | Identified exit to Garrison 3817 | -8/Materials | Garrison activated, responded to threat 3821 | -8/Materials | Core integrity fell below 50% 3843 | -8/Materials | Core integrity fell below 20% 3844 | -8/Materials | Destroyed by G-47 Trooper with Particle Gun Last Messages --------------- 03813_ Imp. Flight Unit destroyed. 03813_ System Shield destroyed. 03813_ Critical hit (Blast). 03817_ H-61 Shepherd calls for garrison reinforcements. 03817_ ALERT: Activating Garrison Access M001. [Achievement: Troublemaker] 03817_ Destroyed Welding Torch. 03817_ Rocket Launcher destroyed. 03817_ ALERT: Construction progress impeded, dispatching reinforcements to local area. 03819_ Acquired 4 matter. 03820_ U-05 Engineer lays Concrete. 03820_ Weight Redist. System destroyed. 03820_ Critical hit (Burn: +37). 03824_ Acquired Shock Rifle. 03834_ Shock Rifle destroyed. 03840_ Critical hit (Burn: +37). 03842_ Slammed into Y-45 Defender. [Achievement: First Step to Greatness] Map ----- +----------------------------------------------------+ | ???????????????????????????????????? | | ???????????????????????????????????? | | ???????????????????????????????????? | | ???????????????????????????????????? | | ???????????????????????????????????? | | ???????????????????????????????????? | | ???????????????????????????????????? | | ???????????????????????????????????? | | ???????????????????????????????????? | | ??################?????????????????? | | ??# ## ????????????????? | | ?## ! ! ## ???????????????? | | ?#=%*[ !! ">" # ############## | | ?##=!] !! "G" # % | | ??# !! " # H | | ??# ! # ### #######??? | | ??##########+####??????# #????????? | | ????????##% % ###### # #????????? | | ????????#" u u % #????????? | | ????????## % / ????? | | ?????????# ##### # ????? | | ########### ##???# #????????? | | # # Y#????# #????????? | | # g# #????# #????????? | | # /Y #????# #????????? | | # ! /! #@ #????# #????????? | | # / # #????# #????????? | | # * / # #????# #????????? | | # # #????# #????????? | | # # #????# #????????? | | ########### #????# #????????? | | ??????????# #????# ????????? | | ??????????# #????# #????????? | | ??????????# #????# #????????? | | ??????????# #????# ?????????? | | ??????????# #????? ???????????? | | ??????????# #?????????????????????? | | ??????????# #?????????????????????? | | ??????????# #?????????????????????? | | ????????### ###### #????????? | | ????????# ????????? | | ????????# ????????? | | ????????# ????????? | | ????????##################?????????? | | ???????????????????????????????????? | | ???????????????????????????????????? | | ???????????????????????????????????? | | ???????????????????????????????????? | | ???????????????????????????????????? | | ???????????????????????????????????? | +----------------------------------------------------+ Best States ------------- Heat Dissipation 35 Energy Generation 20 Energy Capacity 550 Matter Stores 300 Matter Capacity 300 Sight Range 16 Terrain Scan Density 10 Additional Mass Support 6 Core Shielding 20 Utility Shielding 33 Evasion (%) 62 Targeting Accuracy 8 Defensive Hacking 10 Item Schematics ----------------- Imp. Flight Unit | -9/Materials | Scanalyzed Rocket Launcher | -9/Materials | Scanalyzed Weight Redist. System | -9/Materials | Scanalyzed Robot Schematics ------------------ None Fabricated ------------ Nothing Alien Tech Used ----------------- None Achievements -------------- Close Call Everything Is Under Control First Step to Greatness It's Just You Loot Pinata One Hack Too Far Part-time Mechanic Risk Taker Shopping List Storm Trooper Troublemaker Uninvited Guest Challenges ------------ None Game ------ Seed WarpTerrabombSaw Manual? 0 Play Time 02:00:00 Cumulative 1.9 hours Start 2024.04.13 @ 22:43:19 End 2024.04.14 @ 00:55:53 Sessions 1 Manual Loads 0 Difficulty Rogue Special Mode None Game No. 1 Rogue 1 Adventurer 0 Explorer 0 Win Type - Total 0 Types 0/0/0/0/0/0/0/0/0 Lore% 0 Gallery% 3 Achievement% 4 Wizard Run 0 Options --------- Layout 1 ASCII 0 Keyboard 1 Movement Numpad Keybinds 0 Fullscreen 1 Font 24/Tamsyn Map View 50x35 Zoom Use 0% Tactical HUD 1 Map Filters NONE Filters NONE Steam 1 RUN: e4d5a7aa-60bc-4470-8887-12a71dc8c9b6